bitfinex/quotes_ETHUSD_20220227
["timestamp","ask_amount","ask_price","bid_price","bid_amount"]
[1645945996291,0.00585821,2738.8,2738.6,0.67086225]
[1645945996490,0.00585821,2738.8,2738.7,0.67086225]
[1645945996690,0.00585821,2738.8,2738.4,0.00309838]
[1645945996691,0.00585821,2738.8,2738.4,0.67086225]
[1645945997090,3.5,2739.4,2738.4,0.67086225]
[1645945997289,3.5,2739.4,2738.5,1.03629123]
[1645945997491,3.5,2739.4,2738.6,0.67086225]
[1645945997693,3.5,2739.4,2738.6,0.67396063]
[1645945998290,3.5,2739.4,2738.7,0.67051223]
[1645945998495,3.5,2739.4,2738.7,0.00309838]
[1645945998692,3.5,2739.4,2738.6,0.67051132]
[1645945998893,3.5,2739.4,2738.6,0.6736097]
[1645945999829,0.00585801,2739.1,2738.6,0.6736097]
[1645946000034,0.00585801,2739.1,2738.6,0.67051132]
[1645946000240,1.18345801,2739.1,2738.4,0.6736097]
[1645946000435,4.031,2739.0,2738.4,0.00309838]
[1645946000830,0.00410605,2738.9,2738.2,0.25309838]
[1645946001030,0.53510605,2738.9,2738.2,0.00309838]
[1645946001238,3.5,2738.8,2738.1,0.6926686]
[1645946001436,3.5,2738.8,2738.1,0.69576698]
[1645946001635,3.5,2738.8,2738.1,0.6926686]
[1645946002035,3.5,2738.8,2737.9,0.00309838]
[1645946002237,4.6991,2738.8,2737.9,0.69558161]
[1645946002437,4.6991,2738.8,2738.0,0.69248323]
[1645946002635,4.6991,2738.8,2738.1,0.69248323]
[1645946002844,4.6991,2738.8,2737.9,0.00309838]
[1645946003236,4.6991,2738.8,2737.9,0.69556641]
[1645946003435,0.0041056,2738.9,2738.0,0.3663]
[1645946003687,0.0041056,2738.9,2738.1,1.20466803]
[1645946003886,0.0041056,2738.9,2738.2,0.69246803]
[1645946004085,3.7,2738.8,2738.2,0.84146641]
[1645946004284,3.7,2738.8,2738.3,0.69246803]
[1645946005585,3.7,2738.8,2738.3,1.93036926]
[1645946005785,3.7,2738.8,2738.4,0.69246803]
[1645946006389,3.7,2738.8,2738.2,0.00175404]
[1645946006588,3.7,2738.8,2738.0,0.69247188]
[1645946006788,3.7,2738.8,2738.1,0.1459]
[1645946006989,3.7,2738.8,2738.2,0.69422592]
[1645946007525,3.7,2738.8,2738.3,0.69247188]
[1645946007725,3.7,2738.8,2738.4,0.69247188]
[1645946007930,3.7,2738.8,2738.5,0.69247188]
[1645946008125,3.7,2738.8,2738.2,0.00583348]
[1645946008326,3.7,2738.8,2738.3,0.69276163]
[1645946009328,3.7,2738.8,2738.2,0.00583348]
[1645946009528,3.7,2738.8,2738.3,0.69276163]
[1645946009728,3.5,2738.7,2738.3,0.69276163]
[1645946009933,0.531,2738.6,2738.2,0.00583348]
[1645946010132,3.5,2738.5,2738.2,0.00583348]
[1645946010328,3.5,2738.5,2737.7,0.00309838]
[1645946010532,3.5,2738.5,2737.7,0.69677497]
[1645946010730,3.5,2738.5,2737.8,0.69367659]
[1645946010930,3.5,2738.5,2737.9,0.69367659]
[1645946011187,3.5,2738.5,2737.6,0.00309838]
[1645946011385,0.531,2738.4,2737.8,0.00309838]
[1645946011585,0.531,2738.4,2737.6,0.69693031]
[1645946012385,0.6769,2738.4,2737.6,0.69693031]
[1645946012585,0.531,2738.4,2737.6,0.69693031]
[1645946012987,0.531,2738.4,2737.9,0.00579236]
[1645946013786,3.5,2738.3,2738.0,0.69395264]
[1645946013990,3.5,2738.3,2737.5,1.84799838]
[1645946014188,3.5,2738.3,2737.6,0.69707047]
[1645946014389,0.531,2738.4,2737.6,0.69707047]
[1645946015027,0.531,2738.4,2737.7,1.07664152]
[1645946015229,0.531,2738.4,2737.8,0.69397209]
[1645946015833,4.634,2738.7,2738.5,1.64572327]
[1645946016029,3.7,2738.8,2738.5,1.64572327]
[1645946018233,3.7,2738.8,2738.6,0.69554173]
[1645946020483,3.69847781,2738.8,2738.6,0.69554173]
[1645946022731,3.69847781,2738.8,2738.7,1.27862322]
[1645946022928,3.69847781,2738.8,2738.7,1.97416495]
[1645946023129,3.69847781,2738.8,2738.7,0.69554173]
[1645946023735,3.69847781,2738.8,2738.6,0.69554173]
[1645946023929,3.69847781,2738.8,2738.7,0.69554173]
[1645946024330,3.69847781,2738.8,2738.6,1.38004842]
[1645946024530,3.69847781,2738.8,2738.7,0.69554173]
[1645946024932,3.69847781,2738.8,2738.6,0.69554173]
[1645946025139,3.69847781,2738.8,2738.7,0.69554173]
[1645946025833,3.69847781,2738.8,2738.6,0.69554173]
[1645946026077,3.69847781,2738.8,2738.7,0.69554173]
[1645946026287,3.69847781,2738.8,2738.6,0.69554173]
[1645946034683,3.69847781,2738.8,2738.7,1.34445891]
[1645946034886,3.69847781,2738.8,2738.7,2.04000064]
[1645946035284,3.69847781,2738.8,2738.7,0.69554173]
[1645946035683,3.69847781,2738.8,2738.6,0.69554173]
[1645946035884,2.05292522,2738.8,2738.7,0.69554173]
[1645946036085,2.05292522,2738.8,2738.7,1.38004842]
[1645946036290,2.05292522,2738.8,2738.7,0.68450669]
[1645946036489,2.05292522,2738.8,2738.7,0.69554173]
[1645946037348,2.05292522,2738.8,2738.7,13.20522349]
[1645946037939,2.05292522,2738.8,2738.7,2.02522349]
[1645946040047,2.05292522,2738.8,2738.7,2.00842349]
[1645946041290,0.00584686,2738.9,2738.8,6.5]
[1645946041492,49.16927935,2739.9,2738.8,6.5]
[1645946041493,49.0,2739.9,2738.8,18.9571359]
[1645946041691,49.0,2739.9,2739.2,0.68851865]
[1645946041890,49.02337935,2739.9,2739.2,0.68851865]
[1645946042691,49.0,2739.9,2739.2,0.68851865]
[1645946042990,0.00584646,2739.7,2739.2,0.68851865]
[1645946043190,0.00584646,2739.7,2739.1,0.68851865]
[1645946043393,0.00584646,2739.7,2739.2,0.68851865]
[1645946043991,49.0,2739.9,2739.3,0.68851865]
[1645946044189,49.0,2739.9,2739.7,1.29319824]
[1645946044391,49.0,2739.9,2739.3,0.68851865]
[1645946044596,49.0,2739.9,2739.2,0.68851865]
[1645946045424,0.00584646,2739.7,2739.6,1.15330117]
[1645946046230,49.0,2739.9,2739.1,12.86851865]
[1645946046630,0.00584639,2739.8,2739.1,13.16851865]
[1645946047332,0.00584639,2739.8,2739.5,1.33316739]
[1645946047531,49.0,2739.9,2739.5,1.33316739]
[1645946047731,0.00584652,2739.6,2739.5,1.33316739]
[1645946048881,49.0,2739.9,2739.5,1.33316739]
[1645946049085,49.0,2739.9,2739.5,12.51316739]
[1645946049086,0.00584646,2739.7,2739.5,12.51316739]
[1645946049281,0.00584646,2739.7,2739.6,0.1459]
[1645946049481,0.00584646,2739.7,2739.6,0.83441865]
[1645946049691,0.00584646,2739.7,2739.6,11.86851865]
[1645946049880,52.7,2739.9,2739.6,11.86851865]
[1645946050082,52.7,2739.9,2739.7,0.68851865]
[1645946050083,52.59980058,2739.9,2739.7,0.68851865]
[1645946050283,0.00545782,2739.8,2739.6,12.86851865]
[1645946050485,0.00545782,2739.8,2739.6,12.18]
[1645946051087,3.7,2739.9,2739.6,12.18]
[1645946051690,0.00545779,2739.8,2739.6,12.18]
[1645946051888,0.00545779,2739.8,2739.6,12.86851865]
[1645946052089,0.00545779,2739.8,2739.6,12.18]
[1645946052350,3.7,2739.9,2739.6,12.18]
[1645946052536,0.00545779,2739.8,2739.6,12.18]
[1645946053539,3.7,2739.9,2739.6,12.3259]
[1645946053740,0.00545779,2739.8,2739.6,12.3259]
[1645946054341,0.00545779,2739.8,2739.6,12.2759]
[1645946054540,0.00545779,2739.8,2739.6,12.13]
[1645946054740,3.7,2739.9,2739.6,12.13]
[1645946054945,0.00549375,2739.8,2739.6,12.13]
[1645946055340,0.02197169,2740.2,2739.8,11.13]
[1645946055742,0.02197169,2740.2,2739.8,12.5759]
[1645946055942,0.15601158,2740.8,2740.0,11.13]
[1645946056501,4.7284,2741.3,2740.0,12.13]
[1645946057401,0.3663,2741.1,2740.0,12.13]
[1645946057705,8.24179954,2741.0,2740.0,1.0]
[1645946058101,4.74179954,2741.0,2739.9,0.1459]
[1645946058701,0.004106,2740.6,2740.1,1.02850085]
[1645946059506,4.74179954,2741.0,2740.1,1.02850085]
[1645946059705,0.00584827,2740.5,2740.1,1.02850085]
[1645946060141,0.00584827,2740.5,2740.2,0.64395484]
[1645946060740,4.74179954,2741.0,2740.2,0.64395484]
[1645946060940,0.00584827,2740.5,2740.2,0.64395484]
[1645946061948,4.74179954,2741.0,2740.2,0.64395484]
[1645946062148,3.70584827,2740.5,2740.2,0.64395484]
[1645946062748,3.70584827,2740.5,2740.3,0.64395484]
[1645946062952,3.70584827,2740.5,2740.4,0.64395484]
[1645946063146,3.7,2740.5,2740.4,0.64395484]
[1645946063347,3.70584824,2740.5,2740.1,0.64395484]
[1645946064386,3.7,2740.5,2740.1,0.64395484]
[1645946064587,0.0058483,2740.4,2740.1,1.7657067]
[1645946064788,0.0058483,2740.4,2740.2,0.64395484]
[1645946065592,3.7,2740.5,2740.2,0.64395484]
[1645946065795,0.0058483,2740.4,2740.2,0.64395484]
[1645946066691,3.7,2740.5,2740.2,0.64395484]
[1645946067092,0.0058483,2740.4,2740.2,0.64395484]
[1645946067925,3.7,2740.5,2740.2,0.64395484]
[1645946068132,0.0058483,2740.4,2740.2,0.64395484]
[1645946069226,3.7,2740.5,2740.2,0.64395484]
[1645946069427,0.0058483,2740.4,2740.2,0.64395484]
[1645946070430,3.7,2740.5,2740.2,0.64395484]
[1645946070636,0.0058483,2740.4,2740.2,0.64395484]
[1645946070829,0.0058483,2740.4,2740.2,0.94395484]
[1645946071074,0.0058483,2740.4,2740.3,0.64395484]
[1645946071477,3.7,2740.5,2740.3,0.64395484]
[1645946071478,3.7,2740.5,2740.3,0.78985484]
[1645946071676,3.7,2740.5,2740.4,0.78985484]
[1645946071878,3.70584827,2740.5,2740.4,0.64395484]
[1645946072678,3.7,2740.5,2740.4,0.94395484]
[1645946073281,3.7,2740.5,2740.4,0.64395484]
[1645946074079,3.7,2740.5,2740.2,0.64395484]
[1645946074279,3.7,2740.5,2740.1,2.12175186]
[1645946074280,3.7,2740.5,2740.3,0.64395484]
[1645946074480,3.7,2740.5,2740.4,0.64395484]
[1645946075136,3.7,2740.5,2740.2,0.64395484]
[1645946075340,3.7,2740.5,2740.2,12.12395484]
[1645946075540,3.7,2740.5,2740.4,11.18]
[1645946075737,3.7,2740.5,2740.4,12.12395484]
[1645946075941,3.7,2740.5,2740.4,13.12395484]
[1645946075942,2.05578438,2740.5,2740.4,13.12395484]
[1645946079695,2.05578438,2740.5,2740.4,13.81247349]
[1645946080802,2.05578438,2740.5,2740.4,13.12395484]
[1645946081507,2.05578438,2740.5,2740.4,13.80862344]
[1645946082003,2.05578438,2740.5,2740.4,0.64395484]
[1645946082202,2.05578438,2740.5,2740.3,0.68501126]
[1645946082438,2.05578438,2740.5,2740.3,1.3289661]
[1645946082639,2.05578438,2740.5,2740.4,0.64395484]
[1645946083643,2.05578438,2740.5,2740.4,0.59395484]
[1645946086686,2.05578438,2740.5,2740.4,1.2789661]
[1645946088287,2.05578438,2740.5,2740.4,0.59395484]
[1645946089688,2.05578438,2740.5,2740.4,1.2789661]
[1645946090134,2.05578438,2740.5,2740.4,0.59395484]
[1645946090337,2.05578438,2740.5,2740.4,1.2789661]
[1645946092141,2.05578438,2740.5,2740.4,12.4589661]
[1645946092342,2.05578438,2740.5,2740.4,12.77395484]
[1645946092640,2.05578438,2740.5,2740.4,13.07395484]
[1645946093685,2.05578438,2740.5,2740.4,1.89395484]
[1645946093885,2.05578438,2740.5,2740.4,0.89395484]
[1645946094691,2.05578438,2740.5,2740.4,12.07395484]
[1645946095087,2.05578438,2740.5,2740.4,13.07395484]
[1645946096091,0.41161729,2740.5,2740.4,13.07395484]
[1645946097631,0.41161729,2740.5,2740.4,1.89395484]
[1645946097830,0.41161729,2740.5,2740.4,12.07395484]
[1645946098232,0.41161729,2740.5,2740.4,13.07395484]
[1645946098635,0.41161729,2740.5,2740.4,1.89395484]
[1645946098835,0.41161729,2740.5,2740.4,12.07395484]
[1645946099034,0.41161729,2740.5,2740.4,13.07395484]
[1645946100035,0.41161729,2740.5,2740.4,13.98479074]
[1645946100237,0.41161729,2740.5,2740.4,13.07395484]
[1645946101690,0.41161729,2740.5,2740.4,13.98987002]
[1645946102490,0.41161729,2740.5,2740.4,13.07395484]
[1645946102690,0.41161729,2740.5,2740.4,13.98987002]
[1645946105533,0.41161729,2740.5,2740.4,13.07395484]
[1645946106736,0.23057007,2740.5,2740.4,13.07395484]
[1645946106936,0.23057007,2740.5,2740.4,18.21985484]
[1645946107138,0.23057007,2740.5,2740.4,13.21985484]
[1645946107935,0.23057007,2740.5,2740.4,18.21985484]
[1645946108338,0.23057007,2740.5,2740.4,19.60234236]
[1645946108590,0.23057007,2740.5,2740.4,14.60234236]
[1645946108789,0.02297005,2740.5,2740.4,13.21985484]
[1645946109189,0.41125673,2740.5,2740.4,13.21985484]
[1645946109392,0.79954341,2740.5,2740.4,13.07395484]
[1645946109589,0.00585073,2740.6,2740.5,18.68]
[1645946109794,0.00585073,2740.6,2740.5,27.09457051]
[1645946109992,0.00096,2741.3,2740.5,27.32221506]
[1645946110191,0.00096,2741.3,2741.2,1.23860288]
[1645946110492,3.869,2741.6,2741.2,1.23860288]
[1645946110493,3.869,2741.6,2741.2,1.83255772]
[1645946110790,2.7029,2741.6,2741.3,0.59395484]
[1645946110991,4.72856,2742.0,2741.4,0.59395484]
[1645946111200,0.95873148,2741.7,2741.5,0.59395484]
[1645946111397,0.95873148,2741.7,2741.6,0.59395484]
[1645946111596,0.00096,2741.9,2741.6,0.59395484]
[1645946111796,1.24944542,2742.0,2741.7,0.59395484]
[1645946111996,2.34472202,2741.8,2741.7,0.59395484]
[1645946113747,2.34472202,2741.8,2741.7,0.49395484]
[1645946115148,2.34472202,2741.8,2741.7,0.39395484]
[1645946116988,1.38612,2741.8,2741.7,0.39395484]
[1645946117191,1.2276,2742.0,2741.8,0.25770148]
[1645946117390,0.005488,2741.9,2741.8,0.25770148]
[1645946118489,3.5,2742.2,2741.8,0.25770148]
[1645946118689,0.00548619,2742.0,2741.8,0.25770148]
[1645946118889,3.7,2741.9,2741.8,0.25770148]
[1645946119938,7.2,2741.9,2741.8,0.25770148]
[1645946120742,3.7,2741.9,2741.8,0.25770148]
[1645946121546,7.2,2741.9,2741.8,0.25770148]
[1645946121947,3.7,2741.9,2741.8,0.25770148]
[1645946130461,7.2,2741.9,2741.8,0.25770148]
[1645946131082,3.7,2741.9,2741.8,0.25770148]
[1645946131488,7.2,2741.9,2741.8,0.25770148]
[1645946131686,3.7,2741.9,2741.8,0.25770148]
[1645946132289,7.2,2741.9,2741.8,0.25770148]
[1645946132489,7.731,2741.9,2741.8,0.25770148]
[1645946132693,7.731,2741.9,2740.9,0.25]
[1645946132694,8.86444868,2741.9,2740.9,0.25]
[1645946132891,1.84244868,2741.8,2740.6,0.83286751]
[1645946133091,4.86454868,2741.7,2740.6,0.83286751]
[1645946134291,0.00548671,2741.3,2740.6,0.83286751]
[1645946134492,0.00548671,2741.3,2740.6,0.1458]
[1645946135165,0.99315778,2741.2,2740.7,0.54040357]
[1645946135367,0.99315778,2741.1,2740.7,0.54040357]
[1645946135565,0.00548684,2741.1,2740.7,0.54040357]
[1645946136373,3.5,2741.4,2740.7,1.22747108]
[1645946136574,0.0054869,2741.0,2740.8,0.54040357]
[1645946136877,0.0054869,2741.0,2740.9,0.54040357]
[1645946137074,0.00160925,2741.0,2740.7,1.22747108]
[1645946137678,0.00160925,2741.0,2740.8,0.54040357]
[1645946137679,4.49325598,2741.0,2740.8,0.54040357]
[1645946137877,4.49325598,2740.9,2740.2,0.68706751]
[1645946138077,1.52425598,2740.8,2740.2,0.68706751]
[1645946138278,0.99325598,2740.7,2740.3,0.53033394]
[1645946138481,5.69105598,2740.7,2740.4,0.53033394]
[1645946138704,5.69105598,2740.7,2740.5,0.53033394]
[1645946138705,0.99325598,2740.6,2740.5,0.53033394]
[1645946139106,0.99325598,2740.6,2739.9,0.23026751]
[1645946139302,0.99325598,2740.6,2739.9,0.53033394]
[1645946139502,0.99325598,2740.6,2740.0,0.53033394]
[1645946139702,0.99325598,2740.6,2740.1,0.53033394]
[1645946139904,0.99325598,2740.6,2739.7,0.91640066]
[1645946139905,0.99325598,2740.6,2740.2,0.53033394]
[1645946140104,1.2488,2740.7,2740.3,0.53033394]
[1645946140303,1.2488,2740.7,2740.4,0.53033394]
[1645946140502,1.2488,2740.7,2740.5,0.53033394]
[1645946140707,2.8829,2740.9,2740.6,0.53033394]
[1645946140904,1.00837895,2740.8,2740.7,0.53033394]
[1645946141107,2.14177895,2740.8,2740.7,0.53033394]
[1645946141308,1.00837895,2740.8,2740.7,0.53033394]
[1645946141510,1.00837895,2740.9,2740.7,0.53033394]
[1645946141709,1.00837895,2740.9,2740.8,0.53033394]
[1645946141910,4.70837895,2740.9,2740.8,0.53033394]
[1645946142348,4.70837895,2740.9,2740.8,0.07353394]
[1645946142749,3.7,2740.9,2740.8,0.07353394]
[1645946145353,3.7,2740.9,2740.0,0.64964433]
[1645946148224,3.7,2740.9,2739.9,0.47620066]
[1645946149227,3.7,2740.9,2740.2,0.68731105]
[1645946149427,3.7,2740.9,2740.2,2.00015247]
[1645946149952,0.00585066,2740.7,2740.2,2.00015247]
[1645946150553,0.00585066,2740.7,2740.2,0.68731105]
[1645946150955,3.7,2740.9,2740.2,0.68731105]
[1645946151156,0.00585069,2740.6,2740.2,0.68731105]
[1645946151956,3.7,2740.9,2740.2,0.68731105]
[1645946152359,0.00585061,2740.6,2740.4,1.2951624]
[1645946153160,3.7,2740.9,2740.4,1.2951624]
[1645946153596,3.7,2740.9,2740.2,0.68731105]
[1645946153597,0.0058507,2740.6,2740.2,0.68731105]
[1645946154388,7.5,2740.5,2739.7,0.68711152]
[1645946154590,3.5,2740.4,2739.6,0.68711152]
[1645946154788,3.5,2740.4,2740.1,0.00585177]
[1645946154987,7.6459,2740.5,2740.1,0.00585177]
[1645946155489,7.9459,2740.5,2740.1,0.00585177]
[1645946155694,4.9629,2740.6,2739.5,0.93711152]
[1645946155894,3.50585046,2740.6,2740.1,0.00585162]
[1645946156093,0.00585046,2740.6,2740.1,0.00585162]
[1645946156895,0.2812,2740.7,2739.8,0.68711152]
[1645946157333,0.00585054,2740.6,2740.1,0.0058517]
[1645946157534,0.00211318,2740.6,2740.1,0.0058517]
[1645946158135,0.2812,2740.7,2740.0,0.5]
[1645946159841,0.2812,2740.7,2740.2,1.12326629]
[1645946160641,0.2812,2740.7,2740.2,1.81037781]
[1645946160842,0.2812,2740.7,2740.2,1.12326629]
[1645946161112,0.2812,2740.7,2740.1,1.98711152]
[1645946161302,0.2812,2740.7,2740.1,0.98711152]
[1645946161503,0.2812,2740.7,2740.1,0.68711152]
[1645946162104,0.28705033,2740.7,2740.3,0.00585135]
[1645946162801,0.2812,2740.7,2740.1,1.79834148]
[1645946163003,0.2812,2740.7,2740.3,0.00176345]
[1645946164003,0.2812,2740.7,2740.1,0.68711152]
[1645946164203,0.2812,2740.7,2740.3,0.00176345]
[1645946165236,0.2812,2740.7,2740.1,0.68711152]
[1645946165439,0.2812,2740.7,2740.0,1.17449535]
[1645946165638,0.2812,2740.7,2740.3,0.00176345]
[1645946166441,0.2812,2740.7,2740.1,0.48738383]
[1645946166643,0.28704988,2740.7,2740.3,0.00585089]
[1645946166844,0.00584988,2740.7,2740.4,0.48738383]
[1645946167644,4.1239,2740.8,2740.4,0.48738383]
[1645946167845,0.00584996,2740.7,2740.3,0.00585097]
[1645946168045,0.00584996,2740.7,2740.4,0.48738383]
[1645946168893,4.1239,2740.8,2740.4,0.48738383]
[1645946169091,4.1239,2740.8,2740.5,0.48738383]
[1645946169291,0.00584996,2740.7,2740.5,0.48738383]
[1645946169493,0.00584996,2740.7,2740.6,0.48738383]
[1645946169891,0.00584996,2740.7,2740.4,0.48738383]
[1645946170090,3.7,2740.9,2740.4,0.48738383]
[1645946170290,3.7,2740.9,2740.2,0.68711152]
[1645946170291,0.00553894,2740.8,2740.3,0.00484108]
[1645946170491,0.00553894,2740.8,2740.4,0.48738383]
[1645946171090,0.00553894,2740.8,2740.4,1.88708288]
[1645946171295,3.7,2740.9,2740.5,0.48738383]
[1645946171496,0.00558354,2740.7,2740.5,0.48738383]
[1645946172533,3.7,2740.9,2740.5,0.48738383]
[1645946172734,0.00558354,2740.7,2740.5,0.48738383]
[1645946172934,0.00558354,2740.7,2740.6,0.48738383]
[1645946173138,0.00558354,2740.7,2740.4,0.48738383]
[1645946173736,3.7,2740.9,2740.4,0.48738383]
[1645946173936,3.7,2740.9,2740.5,0.48738383]
[1645946173937,0.00558347,2740.7,2740.5,0.48738383]
[1645946174135,0.00558347,2740.7,2740.6,0.48738383]
[1645946174335,1.05046244,2740.7,2740.6,0.48738383]
[1645946174537,1.05046244,2740.7,2740.3,0.0049897]
[1645946174737,1.05046244,2740.7,2740.4,0.48738383]
[1645946174738,0.00558347,2740.7,2740.4,0.48738383]
[1645946174948,1.04539174,2740.6,2740.5,0.48738383]
[1645946175137,1.05097513,2740.7,2740.3,0.0049897]
[1645946175339,1.04539174,2740.6,2740.4,0.48738383]
[1645946175539,1.04539174,2740.6,2740.5,0.48738383]
[1645946175741,1.04539174,2740.6,2740.3,0.0049897]
[1645946175938,1.04539174,2740.6,2740.4,0.48738383]
[1645946176198,1.04539174,2740.6,2740.5,0.48738383]
[1645946176598,1.04539174,2740.6,2740.3,0.00496797]
[1645946176797,1.04539174,2740.6,2740.4,0.48738383]
[1645946177002,1.04539174,2740.6,2740.5,0.48738383]
[1645946177200,3.7,2740.9,2740.3,0.68711152]
[1645946177398,3.7,2740.9,2740.4,1.17449535]
[1645946177399,1.0460575,2740.8,2740.4,1.17449535]
[1645946177604,2.06125435,2740.9,2740.4,1.17449535]
[1645946177798,1.04638906,2740.8,2740.4,1.17449535]
[1645946178698,1.04638906,2740.8,2740.4,1.47449535]
[1645946178901,2.06125435,2740.9,2740.7,0.68711152]
[1645946179100,2.06125435,2740.9,2740.7,1.17449535]
[1645946179298,2.06125435,2740.9,2740.5,3.5]
[1645946179299,2.06125435,2740.9,2740.8,0.48738383]
[1645946181055,2.06125435,2740.9,2740.8,4.28738383]
[1645946181260,2.06125435,2740.9,2740.8,5.28738383]
[1645946181454,2.06125435,2740.9,2740.8,17.36468383]
[1645946181653,2.06125435,2740.9,2740.8,17.51058383]
[1645946181857,0.68975739,2741.9,2740.8,17.51058383]
[1645946181858,1.2139,2742.0,2740.8,5.66428383]
[1645946182054,1.2139,2742.0,2740.9,1.32204784]
[1645946182055,1.75052078,2741.9,2740.9,1.32204784]
[1645946182256,1.75052078,2741.9,2741.0,3.98738383]
[1645946182454,0.02230733,2741.5,2741.1,0.48738383]
[1645946182654,1.06076339,2741.4,2741.2,0.48738383]
[1645946182861,1.06076339,2741.4,2741.3,0.48738383]
[1645946183456,1.06076339,2741.4,2741.3,1.5835027]
[1645946184489,1.06076339,2741.4,2741.3,0.48738383]
[1645946185995,0.00569454,2741.5,2741.3,0.48738383]
[1645946186196,0.00569454,2741.5,2741.4,0.48738383]
[1645946186795,1.06554445,2741.5,2741.4,0.48738383]
[1645946186996,1.05984991,2741.5,2741.4,0.48738383]
[1645946187195,0.00555965,2741.6,2741.4,0.48738383]
[1645946187439,1.05984991,2741.5,2740.8,1.1741481]
[1645946187739,1.05984991,2741.5,2740.9,0.47366058]
[1645946188340,0.00555978,2741.3,2740.9,3.97366058]
[1645946188540,1.05947804,2741.2,2741.0,0.47366058]
[1645946188741,1.05947804,2741.2,2741.1,0.47366058]
[1645946189544,1.05947804,2741.2,2740.6,0.47366058]
[1645946189745,1.0594585,2741.1,2740.7,1.54832573]
[1645946189945,1.0594585,2741.0,2740.8,0.47366058]
[1645946190147,0.00555981,2741.3,2740.8,0.47366058]
[1645946190347,1.05943385,2741.2,2740.8,0.47366058]
[1645946190749,1.05943385,2741.1,2740.8,0.47366058]
[1645946190947,0.00557959,2741.2,2740.8,0.47366058]
[1645946191403,1.05939413,2741.1,2740.8,0.47366058]
[1645946192103,0.00557965,2741.1,2740.8,0.47366058]
[1645946192903,1.2357,2741.4,2740.8,0.47366058]
[1645946193103,1.0592879,2741.3,2740.8,0.47366058]
[1645946193705,1.6,2741.5,2740.9,4.18876401]
[1645946193904,1.6,2741.5,2741.0,0.47366058]
[1645946194105,1.6,2741.5,2741.1,3.5]
[1645946194505,0.00557595,2741.3,2741.2,0.47366058]
[1645946194845,0.00557595,2741.3,2741.2,1.91039505]
[1645946195243,1.6,2741.5,2741.2,1.91039505]
[1645946195444,1.6,2741.5,2741.3,0.47366058]
[1645946195644,0.00557592,2741.4,2741.3,0.47366058]
[1645946196448,1.6,2741.5,2741.3,0.47366058]
[1645946196853,1.60557586,2741.5,2741.3,0.47366058]
[1645946197751,0.60567591,2741.5,2741.3,0.47366058]
[1645946197950,0.61130626,2741.5,2741.3,0.47366058]
[1645946199090,0.60567591,2741.5,2741.3,0.47366058]
[1645946199288,0.61130626,2741.5,2741.3,0.47366058]
[1645946200090,0.60567591,2741.5,2741.3,0.47366058]
[1645946200290,0.61130626,2741.5,2741.4,0.47366058]
[1645946201097,0.00563035,2741.5,2741.4,0.47366058]
[1645946201298,4.271,2742.1,2741.4,0.47366058]
[1645946201496,1.07650237,2742.0,2741.5,0.47366058]
[1645946201693,1.07650237,2742.0,2741.6,0.47366058]
[1645946201895,1.09877196,2742.0,2741.7,0.47366058]
[1645946202100,1.07650237,2741.9,2741.8,0.47366058]
[1645946202738,1.07650237,2742.0,2741.8,0.47366058]
[1645946202937,1.07650237,2742.0,2741.4,1.10407905]
[1645946202938,1.08207039,2742.0,2741.4,1.10407905]
[1645946203137,1.07650237,2741.9,2741.5,0.45428849]
[1645946203939,1.08207047,2741.8,2741.5,0.45428849]
[1645946204139,0.0055681,2741.8,2741.5,0.45428849]
[1645946204944,3.0576,2742.1,2741.6,0.45428849]
[1645946205142,0.0055772,2741.8,2741.7,0.45428849]
[1645946205642,1.08216738,2741.8,2741.3,0.45428849]
[1645946205842,0.0055772,2741.8,2741.3,0.45428849]
[1645946206097,3.0576,2742.1,2741.3,0.45428849]
[1645946206299,1.07656186,2742.0,2741.3,0.45428849]
[1645946206497,0.00519864,2741.7,2741.3,0.45428849]
[1645946206901,0.00519864,2741.7,2741.4,3.5]
[1645946207100,0.00519864,2741.7,2741.5,0.45428849]
[1645946207299,3.9638,2742.2,2741.5,0.45428849]
[1645946207500,1.07647805,2742.1,2741.6,3.5]
[1645946207697,0.00519864,2741.7,2741.6,3.5]
[1645946207898,0.00519864,2741.7,2741.6,4.95408017]
[1645946208198,0.00519864,2741.7,2741.6,1.45408017]
[1645946208599,3.9638,2742.2,2741.6,0.45408017]
[1645946208802,0.00519726,2741.8,2741.6,0.45408017]
[1645946209296,0.00519726,2741.8,2741.7,0.45408017]
[1645946209699,3.9638,2742.2,2741.5,0.45408017]
[1645946209942,0.0051972,2741.9,2741.6,3.5]
[1645946210144,0.0051972,2741.9,2741.7,0.45408017]
[1645946211047,3.9638,2742.2,2741.8,0.45408017]
[1645946211048,4.5638,2742.2,2741.8,0.45408017]
[1645946211246,0.00522267,2741.9,2741.4,4.5]
[1645946211552,0.00522267,2741.9,2741.5,0.45385018]
[1645946211747,0.00522267,2741.9,2741.6,3.5]
[1645946211948,0.00522267,2741.9,2741.7,0.45385018]
[1645946212147,4.5638,2742.2,2741.7,0.45385018]
[1645946212349,0.0052229,2741.9,2741.7,0.45385018]
[1645946213049,0.0052229,2741.9,2741.8,0.45385018]
[1645946213246,4.5638,2742.2,2741.8,0.45385018]
[1645946213447,4.5638,2742.2,2741.9,0.45385018]
[1645946213686,4.5638,2742.2,2741.4,15.68]
[1645946213687,4.5638,2742.2,2742.0,0.45385018]
[1645946213887,0.6,2742.2,2742.1,0.45385018]
[1645946214094,0.6,2742.2,2741.5,0.45385018]
[1645946214387,0.6,2742.2,2741.6,3.5]
[1645946214588,0.6,2742.2,2741.7,11.63385018]
[1645946214792,0.6,2742.2,2742.0,11.18]
[1645946214987,0.6,2742.2,2742.1,0.45385018]
[1645946215187,0.6,2742.2,2742.1,5.03161723]
[1645946215388,0.6,2742.2,2742.1,17.87791723]
[1645946215786,0.6,2742.2,2742.1,14.37791723]
[1645946216790,0.6,2742.2,2742.1,1.75385018]
[1645946217191,0.6,2742.2,2742.1,0.75385018]
[1645946217444,0.6,2742.2,2742.1,0.45385018]
[1645946217845,0.2085841,2742.2,2742.1,0.45385018]
[1645946219649,0.00522102,2742.3,2742.1,0.45385018]
[1645946219846,0.00522102,2742.3,2742.2,0.45385018]
[1645946220648,0.01327988,2742.4,2742.2,0.45385018]
[1645946220848,0.01850085,2742.4,2741.5,0.1458]
[1645946221108,0.01850085,2742.4,2741.6,0.44482713]
[1645946221499,0.01850085,2742.4,2741.4,16.81456401]
[1645946221500,1.08396255,2742.3,2741.7,0.44482713]